[Event "Titled Tuesday Blitz February 22 Early 2022"]
[White "Priasmoro, Novendra"]
[Black "Unat, Can Haktan"]
[WhiteFideId "7105029"]
[BlackFideId "6398073"]
[WhiteElo "2309"]
[BlackElo "1980"]
[Result "1-0"]
[Round "02"]
[TimeControl "180+1"]
[Date "2022.02.22"]
[WhiteClock "0:01:10"]
[BlackClock "0:00:08"]

1. e4 {[%clk 0:02:45]}  c5 {[%clk 0:03:00]} 2. Nf3 {[%clk 0:02:45]}  e6 {[%clk 0:03:00]} 3. d4 {[%clk 0:02:46]}  cxd4 {[%clk 0:03:01]} 4. Nxd4 {[%clk 0:02:47]}  Nf6 {[%clk 0:03:02]} 5. Bd3 {[%clk 0:02:46]}  Nc6 {[%clk 0:03:02]} 6. Nxc6 {[%clk 0:02:45]}  dxc6 {[%clk 0:03:01]} 7. e5 {[%clk 0:02:44]}  Qa5+ {[%clk 0:03:01]} 8. Nc3 {[%clk 0:02:43]}  Qxe5+ {[%clk 0:03:02]} 9. Be3 {[%clk 0:02:42]}  Bc5 {[%clk 0:03:01]} 10. O-O {[%clk 0:02:36]}  Bxe3 {[%clk 0:02:57]} 11. fxe3 {[%clk 0:02:37]}  Qxe3+ {[%clk 0:02:58]} 12. Kh1 {[%clk 0:02:36]}  Bd7 {[%clk 0:02:55]} 13. b4 {[%clk 0:02:26]}  h5 {[%clk 0:02:49]} 14. Rf3 {[%clk 0:02:20]}  Qe5 {[%clk 0:02:48]} 15. Qd2 {[%clk 0:02:10]}  Ng4 {[%clk 0:02:47]} 16. g3 {[%clk 0:02:00]}  h4 {[%clk 0:02:42]} 17. Re1 {[%clk 0:01:58]}  Qc7 {[%clk 0:02:27]} 18. Qg5 {[%clk 0:01:56]}  hxg3 {[%clk 0:01:11]} 19. Qxg4 {[%clk 0:01:55]}  Rxh2+ {[%clk 0:01:12]} 20. Kg1 {[%clk 0:01:55]}  Qb6+ {[%clk 0:01:13]} 21. Ree3 {[%clk 0:01:42]}  O-O-O {[%clk 0:01:13]} 22. Na4 {[%clk 0:01:39]}  Qc7 {[%clk 0:01:08]} 23. Qxg3 {[%clk 0:01:40]}  Rdh8 {[%clk 0:01:03]} 24. Qxc7+ {[%clk 0:01:32]}  Kxc7 {[%clk 0:01:04]} 25. Rxf7 {[%clk 0:01:33]}  Rh1+ {[%clk 0:00:56]} 26. Kg2 {[%clk 0:01:32]}  R8h2+ {[%clk 0:00:56]} 27. Kf3 {[%clk 0:01:31]}  Rh3+ {[%clk 0:00:43]} 28. Ke4 {[%clk 0:01:31]}  Rh4+ {[%clk 0:00:39]} 29. Rf4 {[%clk 0:01:31]}  g5 {[%clk 0:00:26]} 30. Rxh4 {[%clk 0:01:29]}  Rxh4+ {[%clk 0:00:27]} 31. Ke5 {[%clk 0:01:29]}  Rxb4 {[%clk 0:00:26]} 32. Nc5 {[%clk 0:01:29]}  Rb2 {[%clk 0:00:21]} 33. Rh3 {[%clk 0:01:27]}  b6 {[%clk 0:00:16]} 34. Nxd7 {[%clk 0:01:28]}  Kxd7 {[%clk 0:00:16]} 35. Rh7+ {[%clk 0:01:28]}  Kc8 {[%clk 0:00:17]} 36. Kd6 {[%clk 0:01:27]}  a5 {[%clk 0:00:08]} 37. Kxc6 {[%clk 0:01:26]}  Kd8 {[%clk 0:00:08]} 38. Rd7+ {[%clk 0:01:24]}  Ke8 {[%clk 0:00:09]} 39. a4 {[%clk 0:01:16]}  Rb4 {[%clk 0:00:08]} 40. Bb5 {[%clk 0:01:16]}  g4 {[%clk 0:00:07]} 41. Rg7 {[%clk 0:01:14]}  Kf8 {[%clk 0:00:07]} 42. Rg5 {[%clk 0:01:09]}  Kf7 {[%clk 0:00:07]} 43. Kxb6 {[%clk 0:01:10]}  Kf6 {[%clk 0:00:07]} 44. Rg8 {[%clk 0:01:10]}  Kf5 {[%clk 0:00:05]} 45. Kxa5 {[%clk 0:01:09]}  Rb1 {[%clk 0:00:05]} 46. Kb6 {[%clk 0:01:07]}  Kf4 {[%clk 0:00:05]} 47. a5 {[%clk 0:01:07]}  g3 {[%clk 0:00:06]} 48. a6 {[%clk 0:01:07]}  Ra1 {[%clk 0:00:03]} 49. a7 {[%clk 0:01:07]}  Rxa7 {[%clk 0:00:02]} 50. Kxa7 {[%clk 0:01:07]}  Kf3 {[%clk 0:00:03]} 51. Bc6+ {[%clk 0:01:07]}  Kf2 {[%clk 0:00:04]} 52. Kb6 {[%clk 0:01:08]}  e5 {[%clk 0:00:04]} 53. Kc5 {[%clk 0:01:08]}  e4 {[%clk 0:00:05]} 54. Bxe4 {[%clk 0:01:08]}  Kg1 {[%clk 0:00:03]} 55. Rxg3+ {[%clk 0:01:08]}  Kh2 {[%clk 0:00:04]} 56. Rg2+ {[%clk 0:01:08]}  Kh1 {[%clk 0:00:04]} 57. Rd2+ {[%clk 0:01:08]}  Kg1 {[%clk 0:00:05]} 58. Kd4 {[%clk 0:01:08]}  Kf1 {[%clk 0:00:06]} 59. Ke3 {[%clk 0:01:09]}  Ke1 {[%clk 0:00:07]} 60. Bf3 {[%clk 0:01:09]}  Kf1 {[%clk 0:00:08]} 61. Rd1# {[%clk 0:01:10]} 1-0


[Site "https://www.chess.com"]

[Event "Titled Tuesday Blitz February 22 Early 2022"]
[White "Rangel, Daniel"]
[Black "Omariev, Maksim"]
[WhiteFideId "2124475"]
[BlackFideId "4193423"]
[WhiteElo "2187"]
[BlackElo "2501"]
[Result "0-1"]
[Round "02"]
[TimeControl "180+1"]
[Date "2022.02.22"]
[WhiteClock "0:00:10"]
[BlackClock "0:00:05"]

1. c4 {[%clk 0:03:00]}  e5 {[%clk 0:02:58]} 2. g3 {[%clk 0:03:00]}  Nf6 {[%clk 0:02:58]} 3. Bg2 {[%clk 0:02:58]}  d5 {[%clk 0:02:58]} 4. cxd5 {[%clk 0:02:57]}  Nxd5 {[%clk 0:02:59]} 5. Nf3 {[%clk 0:02:58]}  Nc6 {[%clk 0:02:59]} 6. O-O {[%clk 0:02:57]}  Be7 {[%clk 0:02:59]} 7. d4 {[%clk 0:02:55]}  e4 {[%clk 0:02:55]} 8. Ne5 {[%clk 0:02:51]}  Nxe5 {[%clk 0:02:44]} 9. dxe5 {[%clk 0:02:52]}  Bf5 {[%clk 0:02:45]} 10. Qa4+ {[%clk 0:02:39]}  Qd7 {[%clk 0:02:03]} 11. Qxd7+ {[%clk 0:02:37]}  Kxd7 {[%clk 0:02:04]} 12. Rd1 {[%clk 0:02:33]}  Ke6 {[%clk 0:02:03]} 13. g4 {[%clk 0:02:12]}  Bg6 {[%clk 0:01:53]} 14. f4 {[%clk 0:01:47]}  exf3 {[%clk 0:01:49]} 15. exf3 {[%clk 0:01:48]}  Bc5+ {[%clk 0:01:14]} 16. Kh1 {[%clk 0:01:46]}  Rad8 {[%clk 0:01:10]} 17. Re1 {[%clk 0:01:27]}  h5 {[%clk 0:00:40]} 18. Bg5 {[%clk 0:01:12]}  Be7 {[%clk 0:00:29]} 19. Bxe7 {[%clk 0:01:09]}  Kxe7 {[%clk 0:00:30]} 20. Na3 {[%clk 0:00:55]}  Nf4 {[%clk 0:00:27]} 21. Rac1 {[%clk 0:00:49]}  c6 {[%clk 0:00:26]} 22. Rcd1 {[%clk 0:00:48]}  Ke6 {[%clk 0:00:16]} 23. Kg1 {[%clk 0:00:34]}  Rxd1 {[%clk 0:00:09]} 24. Rxd1 {[%clk 0:00:35]}  Kxe5 {[%clk 0:00:10]} 25. Nc4+ {[%clk 0:00:28]}  Ke6 {[%clk 0:00:09]} 26. Re1+ {[%clk 0:00:24]}  Kd5 {[%clk 0:00:07]} 27. Ne3+ {[%clk 0:00:21]}  Kc5 {[%clk 0:00:07]} 28. Nc2 {[%clk 0:00:15]}  Rd8 {[%clk 0:00:06]} 29. b4+ {[%clk 0:00:13]}  Kc4 {[%clk 0:00:04]} 30. Ne3+ {[%clk 0:00:11]}  Kxb4 {[%clk 0:00:04]} 31. g5 {[%clk 0:00:11]}  Rd2 {[%clk 0:00:03]} 32. Bf1 {[%clk 0:00:10]}  Ka3 {[%clk 0:00:03]} 33. Nd1 {[%clk 0:00:08]}  Rxa2 {[%clk 0:00:03]} 34. Nc3 {[%clk 0:00:08]}  Rc2 {[%clk 0:00:02]} 35. Nd1 {[%clk 0:00:07]}  b5 {[%clk 0:00:02]} 36. Re3+ {[%clk 0:00:06]}  Ka4 {[%clk 0:00:01]} 37. Nf2 {[%clk 0:00:07]}  Rc4 {[%clk 0:00:01]} 38. Re7 {[%clk 0:00:07]}  Kb4 {[%clk 0:00:01]} 39. Rxa7 {[%clk 0:00:07]}  Rc1 {[%clk 0:00:02]} 40. Re7 {[%clk 0:00:05]}  c5 {[%clk 0:00:02]} 41. Re4+ {[%clk 0:00:04]}  Bxe4 {[%clk 0:00:02]} 42. Nxe4 {[%clk 0:00:05]}  c4 {[%clk 0:00:03]} 43. Kf2 {[%clk 0:00:06]}  Nd3+ {[%clk 0:00:03]} 44. Ke3 {[%clk 0:00:06]}  Rxf1 {[%clk 0:00:02]} 45. Nd2 {[%clk 0:00:07]}  Re1+ {[%clk 0:00:02]} 46. Kd4 {[%clk 0:00:06]}  Rd1 {[%clk 0:00:02]} 47. Ne4 {[%clk 0:00:07]}  Nf2+ {[%clk 0:00:02]} 48. Ke3 {[%clk 0:00:08]}  Nxe4 {[%clk 0:00:03]} 49. fxe4 {[%clk 0:00:08]}  c3 {[%clk 0:00:03]} 50. Kf4 {[%clk 0:00:09]}  c2 {[%clk 0:00:04]} 51. Ke5 {[%clk 0:00:10]}  c1=Q {[%clk 0:00:04]} 52. Kf5 {[%clk 0:00:10]}  Qc5+ {[%clk 0:00:05]} 53. e5 {[%clk 0:00:11]}  Rf1+ {[%clk 0:00:05]} 54. Ke4 {[%clk 0:00:09]}  Qc4+ {[%clk 0:00:06]} 55. Ke3 {[%clk 0:00:10]}  Kc5 {[%clk 0:00:05]} 0-1


[Site "https://www.chess.com"]

[Event "Titled Tuesday Blitz February 22 Early 2022"]
[White "Redzisz, Michal"]
[Black "Abdyzhapar, Asylbek"]
[WhiteFideId "21816107"]
[BlackFideId "13800337"]
[WhiteElo "1961"]
[BlackElo "2331"]
[Result "0-1"]
[Round "02"]
[TimeControl "180+1"]
[Date "2022.02.22"]
[WhiteClock "0:01:32"]
[BlackClock "0:02:48"]

1. Nf3 {[%clk 0:03:00]}  Nf6 {[%clk 0:02:59]} 2. b4 {[%clk 0:03:01]}  e6 {[%clk 0:02:59]} 3. b5 {[%clk 0:03:00]}  a6 {[%clk 0:02:58]} 4. e3 {[%clk 0:02:58]}  axb5 {[%clk 0:02:58]} 5. Bxb5 {[%clk 0:02:59]}  Be7 {[%clk 0:02:57]} 6. O-O {[%clk 0:02:59]}  O-O {[%clk 0:02:58]} 7. d4 {[%clk 0:02:58]}  d5 {[%clk 0:02:58]} 8. Nbd2 {[%clk 0:02:56]}  c6 {[%clk 0:02:57]} 9. Bd3 {[%clk 0:02:56]}  b5 {[%clk 0:02:58]} 10. Bb2 {[%clk 0:02:55]}  Nbd7 {[%clk 0:02:58]} 11. Qe2 {[%clk 0:02:51]}  Nb6 {[%clk 0:02:57]} 12. Ne5 {[%clk 0:02:38]}  Bb7 {[%clk 0:02:57]} 13. e4 {[%clk 0:02:36]}  Na4 {[%clk 0:02:56]} 14. Rfb1 {[%clk 0:02:37]}  Nxb2 {[%clk 0:02:54]} 15. Rxb2 {[%clk 0:02:37]}  dxe4 {[%clk 0:02:53]} 16. Nxe4 {[%clk 0:02:36]}  Qxd4 {[%clk 0:02:52]} 17. c3 {[%clk 0:01:41]}  Qxe5 {[%clk 0:02:52]} 18. Re1 {[%clk 0:01:42]}  Nxe4 {[%clk 0:02:51]} 19. Bxe4 {[%clk 0:01:38]}  Qxc3 {[%clk 0:02:50]} 20. Qd1 {[%clk 0:01:33]}  Qxb2 {[%clk 0:02:48]} 21. Qd8 {[%clk 0:01:32]} 0-1


[Site "https://www.chess.com"]

[Event "Titled Tuesday Blitz February 22 Early 2022"]
[White "Richter, Nils"]
[Black "Steil-Antoni, Fiona"]
[WhiteFideId "12990809"]
[BlackFideId "4001249"]
[WhiteElo "2289"]
[BlackElo "2059"]
[Result "1/2-1/2"]
[Round "02"]
[TimeControl "180+1"]
[Date "2022.02.22"]
[WhiteClock "0:00:20"]
[BlackClock "0:00:10"]

1. e4 {[%clk 0:03:00]}  e5 {[%clk 0:03:00]} 2. Nf3 {[%clk 0:03:00]}  Nc6 {[%clk 0:03:00]} 3. Nc3 {[%clk 0:03:00]}  Nf6 {[%clk 0:03:00]} 4. d4 {[%clk 0:03:00]}  exd4 {[%clk 0:03:00]} 5. Nxd4 {[%clk 0:03:01]}  Bb4 {[%clk 0:03:01]} 6. Nxc6 {[%clk 0:03:00]}  bxc6 {[%clk 0:02:56]} 7. Bd3 {[%clk 0:03:00]}  d5 {[%clk 0:02:56]} 8. Bd2 {[%clk 0:03:01]}  O-O {[%clk 0:02:34]} 9. O-O {[%clk 0:02:58]}  Bxc3 {[%clk 0:02:05]} 10. Bxc3 {[%clk 0:02:56]}  dxe4 {[%clk 0:02:05]} 11. Bc4 {[%clk 0:02:53]}  Nd5 {[%clk 0:01:53]} 12. Bd4 {[%clk 0:02:39]}  Qg5 {[%clk 0:01:42]} 13. f4 {[%clk 0:02:14]}  Nxf4 {[%clk 0:01:26]} 14. Rxf4 {[%clk 0:01:55]}  Qxf4 {[%clk 0:01:21]} 15. Qe2 {[%clk 0:01:55]}  Bg4 {[%clk 0:01:08]} 16. Qf2 {[%clk 0:01:48]}  Qxf2+ {[%clk 0:01:06]} 17. Kxf2 {[%clk 0:01:48]}  Rad8 {[%clk 0:00:59]} 18. Ke3 {[%clk 0:01:48]}  Rfe8 {[%clk 0:00:44]} 19. Bxa7 {[%clk 0:01:45]}  Be6 {[%clk 0:00:44]} 20. Bxe6 {[%clk 0:01:43]}  Rxe6 {[%clk 0:00:44]} 21. a4 {[%clk 0:01:39]}  Rg6 {[%clk 0:00:44]} 22. g3 {[%clk 0:01:38]}  Rh6 {[%clk 0:00:21]} 23. a5 {[%clk 0:01:18]}  Rxh2 {[%clk 0:00:21]} 24. a6 {[%clk 0:01:18]}  Ra8 {[%clk 0:00:20]} 25. Bd4 {[%clk 0:01:11]}  Rxc2 {[%clk 0:00:20]} 26. a7 {[%clk 0:01:08]}  c5 {[%clk 0:00:19]} 27. Bc3 {[%clk 0:01:07]}  h6 {[%clk 0:00:19]} 28. Kxe4 {[%clk 0:01:07]}  Re2+ {[%clk 0:00:19]} 29. Kd5 {[%clk 0:01:07]}  Re6 {[%clk 0:00:17]} 30. Kxc5 {[%clk 0:01:04]}  h5 {[%clk 0:00:17]} 31. Bd4 {[%clk 0:00:57]}  g5 {[%clk 0:00:16]} 32. Kc4 {[%clk 0:00:53]}  h4 {[%clk 0:00:16]} 33. Ra5 {[%clk 0:00:52]}  Rg6 {[%clk 0:00:14]} 34. gxh4 {[%clk 0:00:50]}  gxh4 {[%clk 0:00:15]} 35. Rb5 {[%clk 0:00:50]}  Kh7 {[%clk 0:00:07]} 36. Rb8 {[%clk 0:00:47]}  Rxa7 {[%clk 0:00:08]} 37. Bxa7 {[%clk 0:00:46]}  Rc6+ {[%clk 0:00:07]} 38. Kd5 {[%clk 0:00:45]}  Ra6 {[%clk 0:00:07]} 39. Bd4 {[%clk 0:00:41]}  Kg6 {[%clk 0:00:07]} 40. Rh8 {[%clk 0:00:38]}  Ra5+ {[%clk 0:00:05]} 41. Kc4 {[%clk 0:00:36]}  Rh5 {[%clk 0:00:05]} 42. Rxh5 {[%clk 0:00:32]}  Kxh5 {[%clk 0:00:06]} 43. Be5 {[%clk 0:00:32]}  c6 {[%clk 0:00:05]} 44. Kc5 {[%clk 0:00:32]}  Kg4 {[%clk 0:00:06]} 45. Kxc6 {[%clk 0:00:33]}  f5 {[%clk 0:00:07]} 46. Bh2 {[%clk 0:00:30]}  Kh3 {[%clk 0:00:05]} 47. Be5 {[%clk 0:00:20]}  Kg4 {[%clk 0:00:06]} 48. b4 {[%clk 0:00:17]}  f4 {[%clk 0:00:06]} 49. b5 {[%clk 0:00:18]}  h3 {[%clk 0:00:06]} 50. b6 {[%clk 0:00:18]}  h2 {[%clk 0:00:07]} 51. b7 {[%clk 0:00:19]}  h1=Q+ {[%clk 0:00:07]} 52. Kc7 {[%clk 0:00:18]}  Qxb7+ {[%clk 0:00:07]} 53. Kxb7 {[%clk 0:00:19]}  f3 {[%clk 0:00:07]} 54. Bd4 {[%clk 0:00:19]}  Kf4 {[%clk 0:00:07]} 55. Kc6 {[%clk 0:00:19]}  Ke4 {[%clk 0:00:08]} 56. Bf2 {[%clk 0:00:19]}  Kd3 {[%clk 0:00:08]} 57. Kd5 {[%clk 0:00:19]}  Ke2 {[%clk 0:00:09]} 58. Bg3 {[%clk 0:00:19]}  f2 {[%clk 0:00:10]} 59. Bxf2 {[%clk 0:00:20]} 1/2-1/2


[Site "https://www.chess.com"]

[Event "Titled Tuesday Blitz February 22 Early 2022"]
[White "Rodchenkov, Sergey D."]
[Black "Wagner, Dennis"]
[WhiteFideId "4168712"]
[BlackFideId "24650684"]
[WhiteElo "2306"]
[BlackElo "2355"]
[Result "1/2-1/2"]
[Round "02"]
[TimeControl "180+1"]
[Date "2022.02.22"]
[WhiteClock "0:00:18"]
[BlackClock "0:00:13"]

1. e4 {[%clk 0:03:00]}  e5 {[%clk 0:02:58]} 2. Nf3 {[%clk 0:03:01]}  Nc6 {[%clk 0:02:58]} 3. Bc4 {[%clk 0:03:01]}  Bc5 {[%clk 0:02:55]} 4. d3 {[%clk 0:03:02]}  Nf6 {[%clk 0:02:55]} 5. O-O {[%clk 0:03:02]}  d6 {[%clk 0:02:54]} 6. Nbd2 {[%clk 0:03:02]}  a6 {[%clk 0:02:53]} 7. a4 {[%clk 0:02:59]}  Ba7 {[%clk 0:02:52]} 8. c3 {[%clk 0:02:58]}  h6 {[%clk 0:02:47]} 9. a5 {[%clk 0:02:52]}  Nh5 {[%clk 0:02:41]} 10. Re1 {[%clk 0:02:36]}  Qf6 {[%clk 0:02:41]} 11. Nf1 {[%clk 0:02:29]}  Bg4 {[%clk 0:02:41]} 12. Be3 {[%clk 0:02:19]}  Bxf3 {[%clk 0:02:41]} 13. Qxf3 {[%clk 0:02:20]}  Qxf3 {[%clk 0:02:41]} 14. gxf3 {[%clk 0:02:21]}  Rf8 {[%clk 0:02:35]} 15. Ng3 {[%clk 0:02:11]}  Nxg3 {[%clk 0:02:09]} 16. hxg3 {[%clk 0:02:12]}  Bxe3 {[%clk 0:02:08]} 17. fxe3 {[%clk 0:02:02]}  Kd7 {[%clk 0:01:47]} 18. g4 {[%clk 0:01:41]}  Ne7 {[%clk 0:01:43]} 19. d4 {[%clk 0:01:35]}  f6 {[%clk 0:01:43]} 20. Kg2 {[%clk 0:01:30]}  c6 {[%clk 0:01:23]} 21. b4 {[%clk 0:01:23]}  d5 {[%clk 0:01:20]} 22. Bb3 {[%clk 0:01:23]}  dxe4 {[%clk 0:01:12]} 23. fxe4 {[%clk 0:01:22]}  Rad8 {[%clk 0:01:12]} 24. dxe5 {[%clk 0:00:52]}  fxe5 {[%clk 0:01:11]} 25. Rf1 {[%clk 0:00:52]}  Kc7 {[%clk 0:01:09]} 26. Rxf8 {[%clk 0:00:52]}  Rxf8 {[%clk 0:01:10]} 27. Rf1 {[%clk 0:00:51]}  Rxf1 {[%clk 0:00:57]} 28. Kxf1 {[%clk 0:00:52]}  Kd6 {[%clk 0:00:56]} 29. Ke2 {[%clk 0:00:47]}  Ng6 {[%clk 0:00:47]} 30. Bf7 {[%clk 0:00:45]}  Nf8 {[%clk 0:00:47]} 31. Kd3 {[%clk 0:00:41]}  Nh7 {[%clk 0:00:45]} 32. c4 {[%clk 0:00:37]}  Nf6 {[%clk 0:00:42]} 33. c5+ {[%clk 0:00:17]}  Ke7 {[%clk 0:00:42]} 34. Bg6 {[%clk 0:00:18]}  Kd8 {[%clk 0:00:19]} 35. Bf5 {[%clk 0:00:18]}  Kc7 {[%clk 0:00:16]} 36. Ke2 {[%clk 0:00:19]}  g5 {[%clk 0:00:15]} 37. Kd3 {[%clk 0:00:18]}  h5 {[%clk 0:00:14]} 38. gxh5 {[%clk 0:00:18]}  Nxh5 {[%clk 0:00:14]} 39. Bg4 {[%clk 0:00:17]}  Nf6 {[%clk 0:00:14]} 40. Bf5 {[%clk 0:00:18]}  Kb8 {[%clk 0:00:14]} 41. Ke2 {[%clk 0:00:18]}  Kc7 {[%clk 0:00:15]} 42. Kf2 {[%clk 0:00:19]}  Kd8 {[%clk 0:00:15]} 43. Kg3 {[%clk 0:00:19]}  Kc7 {[%clk 0:00:15]} 44. Kg2 {[%clk 0:00:17]}  Kb8 {[%clk 0:00:13]} 45. Kg3 {[%clk 0:00:18]}  Kc7 {[%clk 0:00:14]} 46. Kg2 {[%clk 0:00:18]}  Ng8 {[%clk 0:00:13]} 47. Kf3 {[%clk 0:00:18]}  Nf6 {[%clk 0:00:13]} 48. Kg2 {[%clk 0:00:18]} 1/2-1/2


[Site "https://www.chess.com"]

[Event "Titled Tuesday Blitz February 22 Early 2022"]
[White "Sanchez Alvares, Kelvin Antonio"]
[Black "Nugumanov, Bakhtiyar"]
[WhiteFideId "3906680"]
[BlackFideId "13701797"]
[WhiteElo "2193"]
[BlackElo "2262"]
[Result "1-0"]
[Round "02"]
[TimeControl "180+1"]
[Date "2022.02.22"]
[WhiteClock "0:00:25"]
[BlackClock "0:00:01"]

1. d4 {[%clk 0:03:00]}  d5 {[%clk 0:02:56]} 2. c4 {[%clk 0:03:00]}  e6 {[%clk 0:02:57]} 3. Nf3 {[%clk 0:03:01]}  Nf6 {[%clk 0:02:57]} 4. Nc3 {[%clk 0:03:01]}  a6 {[%clk 0:02:58]} 5. Bg5 {[%clk 0:03:01]}  dxc4 {[%clk 0:02:27]} 6. e4 {[%clk 0:03:00]}  b5 {[%clk 0:02:21]} 7. e5 {[%clk 0:03:00]}  h6 {[%clk 0:02:21]} 8. Bh4 {[%clk 0:02:59]}  g5 {[%clk 0:02:18]} 9. exf6 {[%clk 0:03:00]}  gxh4 {[%clk 0:02:14]} 10. Ne5 {[%clk 0:03:01]}  Qxf6 {[%clk 0:02:01]} 11. a4 {[%clk 0:02:59]}  Bb7 {[%clk 0:01:01]} 12. axb5 {[%clk 0:02:56]}  Bb4 {[%clk 0:00:41]} 13. bxa6 {[%clk 0:02:49]}  Bxc3+ {[%clk 0:00:40]} 14. bxc3 {[%clk 0:02:47]}  Nxa6 {[%clk 0:00:37]} 15. Qb1 {[%clk 0:02:35]}  Bc8 {[%clk 0:00:16]} 16. Qb5+ {[%clk 0:02:22]}  Kf8 {[%clk 0:00:13]} 17. Bxc4 {[%clk 0:01:34]}  Kg7 {[%clk 0:00:13]} 18. O-O {[%clk 0:01:31]}  Rb8 {[%clk 0:00:12]} 19. Qa5 {[%clk 0:01:19]}  Ra8 {[%clk 0:00:07]} 20. f4 {[%clk 0:01:05]}  Rd8 {[%clk 0:00:04]} 21. Qb5 {[%clk 0:00:55]}  h3 {[%clk 0:00:01]} 22. Qc6 {[%clk 0:00:47]}  Ra7 {[%clk 0:00:02]} 23. Bxa6 {[%clk 0:00:45]}  Bxa6 {[%clk 0:00:03]} 24. Rxa6 {[%clk 0:00:43]}  Rd6 {[%clk 0:00:03]} 25. Rxa7 {[%clk 0:00:30]}  Rxc6 {[%clk 0:00:03]} 26. Nxc6 {[%clk 0:00:30]}  Qg6 {[%clk 0:00:01]} 27. Ra2 {[%clk 0:00:27]}  Qe4 {[%clk 0:00:01]} 28. Ne5 {[%clk 0:00:25]}  f6 {[%clk 0:00:01]} 29. Nf3 {[%clk 0:00:25]} 1-0


[Site "https://www.chess.com"]

[Event "Titled Tuesday Blitz February 22 Early 2022"]
[White "Sargissyan, Sargis"]
[Black "Korchmar, Vasiliy"]
[WhiteFideId "13303210"]
[BlackFideId "24131750"]
[WhiteElo "2174"]
[BlackElo "2370"]
[Result "0-1"]
[Round "02"]
[TimeControl "180+1"]
[Date "2022.02.22"]
[WhiteClock "0:00:01"]
[BlackClock "0:01:21"]

1. e4 {[%clk 0:03:00]}  c5 {[%clk 0:02:59]} 2. Nf3 {[%clk 0:03:00]}  d6 {[%clk 0:02:59]} 3. d4 {[%clk 0:03:00]}  cxd4 {[%clk 0:03:00]} 4. Nxd4 {[%clk 0:03:00]}  Nf6 {[%clk 0:03:01]} 5. Nc3 {[%clk 0:03:00]}  Nc6 {[%clk 0:03:01]} 6. Bg5 {[%clk 0:02:59]}  e6 {[%clk 0:03:01]} 7. Qd2 {[%clk 0:02:59]}  a6 {[%clk 0:03:01]} 8. O-O-O {[%clk 0:02:56]}  h6 {[%clk 0:03:02]} 9. Nxc6 {[%clk 0:02:51]}  bxc6 {[%clk 0:03:03]} 10. Bf4 {[%clk 0:02:51]}  d5 {[%clk 0:03:03]} 11. Qe3 {[%clk 0:02:51]}  Bb4 {[%clk 0:03:03]} 12. Be2 {[%clk 0:02:11]}  O-O {[%clk 0:03:01]} 13. e5 {[%clk 0:02:09]}  Nd7 {[%clk 0:03:00]} 14. Qg3 {[%clk 0:01:54]}  Qc7 {[%clk 0:02:53]} 15. Bxh6 {[%clk 0:01:40]}  Qxe5 {[%clk 0:02:53]} 16. Bf4 {[%clk 0:01:40]}  Qf6 {[%clk 0:02:53]} 17. Bg5 {[%clk 0:01:40]}  Qg6 {[%clk 0:02:42]} 18. h4 {[%clk 0:01:34]}  f6 {[%clk 0:02:37]} 19. Bd3 {[%clk 0:01:29]}  Qh5 {[%clk 0:02:35]} 20. Be2 {[%clk 0:01:23]}  Qg6 {[%clk 0:02:35]} 21. Bd3 {[%clk 0:01:23]}  Qh5 {[%clk 0:02:35]} 22. Be2 {[%clk 0:01:23]}  Qf7 {[%clk 0:02:36]} 23. Bd2 {[%clk 0:01:08]}  Nc5 {[%clk 0:02:20]} 24. a3 {[%clk 0:00:33]}  Bxc3 {[%clk 0:02:19]} 25. Qxc3 {[%clk 0:00:33]}  Ne4 {[%clk 0:02:20]} 26. Qf3 {[%clk 0:00:29]}  Rb8 {[%clk 0:02:10]} 27. Bd3 {[%clk 0:00:26]}  f5 {[%clk 0:02:06]} 28. h5 {[%clk 0:00:23]}  Qf6 {[%clk 0:02:05]} 29. c3 {[%clk 0:00:18]}  Nc5 {[%clk 0:01:58]} 30. Bc2 {[%clk 0:00:17]}  e5 {[%clk 0:01:59]} 31. Be3 {[%clk 0:00:17]}  Nb3+ {[%clk 0:01:52]} 32. Bxb3 {[%clk 0:00:17]}  Rxb3 {[%clk 0:01:53]} 33. h6 {[%clk 0:00:17]}  f4 {[%clk 0:01:44]} 34. hxg7 {[%clk 0:00:15]}  Qxg7 {[%clk 0:01:45]} 35. Bc5 {[%clk 0:00:15]}  Bg4 {[%clk 0:01:45]} 36. Qd3 {[%clk 0:00:13]}  Rfb8 {[%clk 0:01:45]} 37. Rd2 {[%clk 0:00:12]}  Qf7 {[%clk 0:01:32]} 38. Bb4 {[%clk 0:00:08]}  a5 {[%clk 0:01:33]} 39. Bxa5 {[%clk 0:00:05]}  Bf5 {[%clk 0:01:34]} 40. Qa6 {[%clk 0:00:05]}  Rxa3 {[%clk 0:01:32]} 41. Rdd1 {[%clk 0:00:02]}  Ra1+ {[%clk 0:01:31]} 42. Kd2 {[%clk 0:00:02]}  Rxb2+ {[%clk 0:01:31]} 43. Ke1 {[%clk 0:00:03]}  Rxd1+ {[%clk 0:01:30]} 44. Kxd1 {[%clk 0:00:03]}  Rb1+ {[%clk 0:01:31]} 45. Kd2 {[%clk 0:00:03]}  Rxh1 {[%clk 0:01:32]} 46. Qxc6 {[%clk 0:00:03]}  Rb1 {[%clk 0:01:22]} 47. Bb4 {[%clk 0:00:02]}  d4 {[%clk 0:01:22]} 48. cxd4 {[%clk 0:00:01]}  Qa2+ {[%clk 0:01:21]} 0-1


[Site "https://www.chess.com"]